bitfinex-derivatives/quotes_BTCF0:USTF0_20251103
["timestamp","ask_amount","ask_price","bid_price","bid_amount"]
[1762185571827,0.4665268,105810.0,105800.0,0.05906]
[1762185572126,0.4715268,105810.0,105800.0,0.05906]
[1762185572532,0.8105268,105810.0,105800.0,0.05906]
[1762185572937,0.88524949,105810.0,105800.0,0.05906]
[1762185573431,0.88524949,105810.0,105790.0,0.0458]
[1762185573432,0.1057357,105800.0,105790.0,0.0458]
[1762185573626,1.6057357,105800.0,105790.0,0.1403447]
[1762185573933,1.5,105800.0,105790.0,0.5011447]
[1762185574135,1.5945357,105800.0,105790.0,0.1403447]
[1762185574337,1.5945357,105800.0,105790.0,0.5011447]
[1762185574533,1.5945357,105800.0,105790.0,0.4066]
[1762185574729,1.5945357,105800.0,105790.0,0.5011447]
[1762185574929,1.5985357,105800.0,105790.0,0.5011447]
[1762185575330,1.6015357,105800.0,105790.0,0.5011447]
[1762185575535,1.6015357,105800.0,105790.0,0.1403447]
[1762185576036,1.6015357,105800.0,105790.0,0.5011447]
[1762185576636,1.6015357,105800.0,105790.0,0.1403447]
[1762185577137,1.6015357,105800.0,105790.0,0.0458]
[1762185577530,1.9623357,105800.0,105790.0,0.0458]
[1762185577734,0.0112,105790.0,105780.0,0.85601704]
[1762185577934,1.6015357,105800.0,105790.0,0.1403446]
[1762185578132,1.507,105800.0,105790.0,0.33665936]
[1762185578331,1.6015357,105800.0,105790.0,0.69745936]
[1762185578532,1.6015357,105800.0,105790.0,0.5011446]
[1762185578832,1.5975357,105800.0,105790.0,0.5011446]
[1762185579038,1.5945357,105800.0,105790.0,0.5011446]
[1762185579635,1.5975357,105800.0,105790.0,0.5011446]
[1762185580029,1.503,105800.0,105790.0,0.5011446]
[1762185580228,1.5975356,105800.0,105790.0,0.0458]
[1762185580429,1.5975356,105800.0,105790.0,0.36162]
[1762185580628,1.5975356,105800.0,105790.0,0.4792245]
[1762185580835,1.9583356,105800.0,105790.0,0.38468]
[1762185581036,1.9623356,105800.0,105790.0,0.38468]
[1762185582339,1.6015356,105800.0,105790.0,0.4792247]
[1762185582536,1.6015356,105800.0,105790.0,0.38468]
[1762185582934,1.6015356,105800.0,105790.0,0.0458]
[1762185583442,1.9623356,105800.0,105790.0,0.0458]
[1762185584039,1.6015357,105800.0,105790.0,0.0458]
[1762185584735,1.6015357,105800.0,105790.0,0.1403447]
[1762185585746,1.6015357,105800.0,105790.0,0.5011447]
[1762185586040,0.0945447,105790.0,105780.0,0.47129314]
[1762185586342,0.0945447,105790.0,105780.0,0.85511054]
[1762185586546,1.6015357,105800.0,105790.0,0.1395947]
[1762185587043,1.6015357,105800.0,105790.0,0.04505]
[1762185587246,1.9623357,105800.0,105780.0,0.01594694]
[1762185587548,0.1067447,105790.0,105780.0,0.49431054]
[1762185588240,0.1067447,105790.0,105780.0,0.85511054]
[1762185588636,1.5985357,105800.0,105790.0,0.1395947]
[1762185588944,1.5955357,105800.0,105790.0,0.1395947]
[1762185589942,1.5985357,105800.0,105790.0,0.33590946]
[1762185590142,1.5985357,105800.0,105790.0,0.69670946]
[1762185590143,1.504,105800.0,105790.0,0.69670946]
[1762185590449,1.503,105800.0,105790.0,0.69670946]
[1762185590650,1.5975356,105800.0,105790.0,0.69670946]
[1762185590949,1.503,105800.0,105790.0,0.69670946]
[1762185591146,0.4695356,105800.0,105790.0,0.04505]
[1762185591352,0.1057445,105790.0,105780.0,0.49423044]
[1762185591553,1.6057445,105790.0,105780.0,0.49423044]
[1762185591844,1.9665445,105790.0,105780.0,0.39967694]
[1762185592245,1.6057445,105790.0,105780.0,0.39967694]
[1762185592443,1.6057445,105790.0,105780.0,0.85503054]
[1762185592646,1.6077445,105790.0,105780.0,0.49423054]
[1762185593345,1.5076,105790.0,105780.0,0.85503054]
[1762185593848,1.6021446,105790.0,105780.0,0.85503054]
[1762185594041,1.5086,105790.0,105780.0,0.85503054]
[1762185594236,1.5086,105790.0,105780.0,1.0513453]
[1762185594237,0.003,105790.0,105780.0,1.0513453]
[1762185594750,1.503,105790.0,105780.0,1.11899437]
[1762185595241,1.5975446,105790.0,105780.0,1.11899437]
[1762185595541,1.503,105790.0,105780.0,1.11899437]
[1762185595946,0.17485129,105810.0,105800.0,0.1168457]
[1762185596141,0.1057286,105810.0,105800.0,0.4919857]
[1762185596341,0.4665286,105810.0,105800.0,0.39745]
[1762185596544,0.1057286,105810.0,105800.0,0.39745]
[1762185596851,0.54322456,105810.0,105800.0,0.05885]
[1762185597241,0.54822456,105810.0,105800.0,0.05885]
[1762185597446,0.55522456,105810.0,105800.0,0.05885]
[1762185597851,0.55522456,105810.0,105800.0,0.1533857]
[1762185597852,0.19442456,105810.0,105800.0,0.1533857]
[1762185598349,0.55522456,105810.0,105800.0,0.05885]
[1762185599745,0.19442456,105810.0,105800.0,0.1533856]
[1762185600656,0.0232,105810.0,105800.0,0.1533856]
[1762185600951,0.0232,105810.0,105800.0,0.41965]
[1762185601454,0.0232,105810.0,105800.0,0.05885]
[1762185601641,0.012,105810.0,105800.0,0.41965]
[1762185601845,0.0232,105810.0,105800.0,0.05885]
[1762185603252,0.0176,105810.0,105800.0,0.05885]
[1762185603453,0.012,105810.0,105800.0,0.5141856]
[1762185603854,0.0232,105810.0,105800.0,0.05885]
[1762185604056,0.0232,105810.0,105800.0,0.39725]
[1762185604245,0.0182,105810.0,105800.0,0.39725]
[1762185604450,0.0112,105810.0,105800.0,0.05885]
[1762185604651,0.0222,105810.0,105800.0,0.05885]
[1762185604851,0.0222,105810.0,105800.0,0.1533857]
[1762185605153,0.0166,105810.0,105800.0,0.5141857]
[1762185605455,0.001,105810.0,105800.0,0.5141857]
[1762185605754,0.008,105810.0,105800.0,0.5141857]
[1762185606156,0.0136,105830.0,105820.0,0.1533678]
[1762185606453,0.72636,105840.0,105830.0,0.1395588]
[1762185606653,0.0136,105840.0,105830.0,0.04505]
[1762185606951,0.0136,105830.0,105820.0,0.3746]
[1762185607150,0.0272,105830.0,105820.0,0.19287039]
[1762185607349,0.0332,105830.0,105820.0,0.17013039]
[1762185607554,0.394,105830.0,105820.0,0.19287039]
[1762185607862,0.394,105830.0,105820.0,0.17013039]
[1762185608061,0.0272,105800.0,105790.0,0.17907039]
[1762185608351,0.388,105800.0,105790.0,0.04505]
[1762185608542,0.388,105800.0,105780.0,0.39927694]
[1762185608543,0.0272,105790.0,105780.0,0.39927694]
[1762185608749,0.0272,105790.0,105780.0,0.85463054]
[1762185608947,0.0272,105790.0,105780.0,0.53329733]
[1762185609351,0.3608,105800.0,105790.0,0.04505]
[1762185609549,0.0272,105790.0,105780.0,0.62785093]
[1762185609753,0.0272,105790.0,105780.0,0.19501733]
[1762185610154,0.0272,105790.0,105780.0,0.28957093]
[1762185610456,0.0272,105790.0,105780.0,0.65037093]
[1762185610651,0.0272,105790.0,105780.0,0.51635054]
[1762185610850,0.0282,105800.0,105790.0,0.1395945]
[1762185611050,0.0282,105800.0,105790.0,0.27361489]
[1762185611250,0.0282,105800.0,105790.0,0.63441489]
[1762185611446,0.3608,105820.0,105810.0,0.04505]
[1762185611447,0.468923,105820.0,105810.0,0.04505]
[1762185611651,0.468923,105820.0,105810.0,0.27359699]
[1762185611652,0.0945177,105820.0,105810.0,0.27359699]
[1762185611849,0.3608,105830.0,105820.0,0.05885]
[1762185611850,0.8207559,105830.0,105820.0,0.05885]
[1762185612050,0.388,105830.0,105820.0,0.28738809]
[1762185612259,0.3744,105840.0,105830.0,0.1395587]
[1762185612456,0.4824909,105850.0,105840.0,0.05885]
[1762185612656,0.1216998,105840.0,105830.0,0.36055]
[1762185612959,0.1216998,105840.0,105830.0,0.61181909]
[1762185613259,0.4824979,105850.0,105840.0,0.05885]
[1762185613461,0.1216998,105840.0,105830.0,0.51731039]
[1762185613655,0.4824998,105840.0,105830.0,0.51731039]
[1762185613861,0.1216998,105840.0,105830.0,0.51731039]
[1762185614157,0.4824909,105850.0,105840.0,0.1533498]
[1762185614463,0.1080909,105850.0,105840.0,0.28737019]
[1762185615056,0.1080909,105850.0,105840.0,0.19287039]
[1762185615252,0.1216909,105850.0,105840.0,0.19287039]
[1762185615455,0.0272,105840.0,105830.0,0.74421]
[1762185615654,0.4824998,105840.0,105830.0,0.33812]
[1762185615849,0.1217088,105830.0,105820.0,0.05897]
[1762185616352,0.0272,105820.0,105810.0,0.11314418]
[1762185616556,0.388,105820.0,105810.0,0.04517]
[1762185617262,0.3608,105820.0,105810.0,0.04517]
[1762185617562,0.388,105830.0,105820.0,0.0587]
[1762185618162,0.0272,105820.0,105810.0,0.04517]
[1762185618462,0.0272,105810.0,105800.0,0.39709]
[1762185618755,0.388,105810.0,105800.0,0.05897]
[1762185618960,0.0272,105800.0,105790.0,0.02254]
[1762185619151,0.0272,105800.0,105790.0,0.09051418]
[1762185619661,0.0272,105800.0,105780.0,0.17250733]
[1762185619662,0.0272,105790.0,105780.0,0.17250733]
[1762185619858,0.388,105790.0,105780.0,0.07107845]
[1762185620365,0.0272,105790.0,105780.0,0.16563205]
[1762185620556,0.388,105790.0,105780.0,0.19592733]
[1762185620763,0.726,105790.0,105780.0,0.00320694]
[1762185621057,0.0272,105790.0,105780.0,0.19592733]
[1762185621262,0.726,105790.0,105780.0,0.17329733]
[1762185621560,0.726,105790.0,105780.0,0.00320694]
[1762185622761,0.726,105790.0,105780.0,0.19592733]
[1762185622961,0.726,105790.0,105780.0,0.15646054]
[1762185623162,0.388,105790.0,105780.0,0.29248093]
[1762185623460,0.726,105800.0,105790.0,0.1397145]
[1762185623654,0.0272,105800.0,105790.0,0.27373489]
[1762185623862,0.724,105810.0,105800.0,0.0587]
[1762185624160,0.8185316,105810.0,105800.0,0.19272039]
[1762185624555,0.4825316,105810.0,105800.0,0.19272039]
[1762185624758,0.1217356,105800.0,105790.0,0.17919039]
[1762185625157,0.4583353,105810.0,105790.0,0.63453489]
[1762185625461,0.4583266,105810.0,105800.0,0.19272039]
[1762185625762,0.003,105810.0,105800.0,0.98601599]
[1762185625954,0.0975266,105810.0,105800.0,0.39666]
[1762185626268,0.4825266,105810.0,105800.0,0.53068039]
[1762185626559,0.4825266,105810.0,105800.0,0.39666]
[1762185626759,0.4865266,105810.0,105800.0,0.53068039]
[1762185627063,0.0985266,105810.0,105800.0,0.62521599]
[1762185627465,0.0985266,105810.0,105800.0,0.53068039]
[1762185627758,0.004,105810.0,105800.0,0.62521609]
[1762185628061,0.1257268,105810.0,105800.0,0.39666]
[1762185628259,0.1257268,105810.0,105800.0,0.53068039]
[1762185628449,0.1121268,105810.0,105800.0,0.62521599]
[1762185628657,0.1015268,105810.0,105800.0,0.62521599]
[1762185628855,0.1015266,105810.0,105800.0,0.62521599]
[1762185629150,0.1257266,105810.0,105800.0,0.53068039]
[1762185629355,0.1257266,105810.0,105800.0,0.19272039]
[1762185629356,0.4895266,105810.0,105800.0,0.19272039]
[1762185629758,0.1015266,105810.0,105800.0,0.28725599]
[1762185629958,0.007,105810.0,105800.0,0.78207638]
[1762185630164,0.007,105810.0,105800.0,1.08622789]
[1762185630457,0.00946528,105830.0,105820.0,0.1524977]
[1762185630657,0.4553062,105840.0,105830.0,0.1395688]
[1762185630658,0.0945062,105840.0,105830.0,0.1395688]
[1762185630863,0.3608,105850.0,105840.0,0.1524798]
[1762185630864,0.0944948,105850.0,105840.0,0.1524798]
[1762185631054,0.094485,105860.0,105850.0,0.1395509]
[1762185631256,0.10404605,105860.0,105850.0,0.17908039]
[1762185631754,0.46484605,105860.0,105850.0,0.17908039]
[1762185631952,0.1276909,105850.0,105840.0,0.03496]
[1762185632154,0.1277088,105830.0,105820.0,0.52984039]
[1762185632362,0.4885088,105830.0,105820.0,0.05798]
[1762185632566,0.4885088,105830.0,105800.0,0.53041039]
[1762185632567,0.1111266,105810.0,105800.0,0.53041039]
[1762185632758,0.0945266,105810.0,105800.0,0.89121039]
[1762185633064,0.0945266,105810.0,105800.0,0.53041039]
[1762185633267,0.0945266,105810.0,105800.0,0.19261039]
[1762185633467,0.0945266,105810.0,105800.0,0.53041039]
[1762185633858,0.0945266,105810.0,105800.0,0.28714599]
[1762185634057,0.0945266,105810.0,105800.0,0.19261039]
[1762185634058,0.0985266,105810.0,105800.0,0.19261039]
[1762185634267,0.4593266,105810.0,105800.0,0.19261039]
[1762185634561,0.0985266,105810.0,105800.0,0.05859]
[1762185634760,0.4593266,105810.0,105800.0,0.53037039]
[1762185634959,0.0985266,105810.0,105800.0,0.53037039]
[1762185635161,0.1015266,105810.0,105800.0,0.53037039]
[1762185635466,0.4623266,105810.0,105800.0,0.53037039]
[1762185635858,0.1015266,105810.0,105800.0,0.53037039]
[1762185636059,0.4633266,105810.0,105800.0,0.53037039]
[1762185636359,0.1384984,105800.0,105790.0,0.06784169]
[1762185636562,0.04396,105790.0,105780.0,0.39951694]
[1762185636766,0.40476,105790.0,105780.0,0.53353733]
[1762185636955,0.40476,105790.0,105780.0,0.06179694]
[1762185637362,0.41413885,105790.0,105780.0,0.06179694]
[1762185637564,0.41413885,105790.0,105780.0,0.00320694]
[1762185638067,0.41413885,105790.0,105780.0,0.02524694]
[1762185638262,0.41413885,105790.0,105780.0,0.00520694]
[1762185638862,0.41413885,105790.0,105780.0,0.19720733]
[1762185639168,0.41413885,105790.0,105780.0,0.19920733]
[1762185639669,0.41713885,105790.0,105780.0,0.19720733]
[1762185640558,0.41713885,105790.0,105780.0,0.29176383]
[1762185640559,0.37317885,105790.0,105780.0,0.29176383]
[1762185641068,0.37317885,105790.0,105780.0,0.19520733]
[1762185641365,0.42413885,105790.0,105780.0,0.00320694]
[1762185641575,0.04396,105760.0,105740.0,0.31455828]
[1762185641763,0.40476,105750.0,105740.0,0.38586071]
[1762185642268,0.40476,105750.0,105740.0,0.00312071]
[1762185642471,0.74254301,105750.0,105740.0,0.00312071]
[1762185643360,0.74254301,105750.0,105740.0,0.00612071]
[1762185643871,0.83712621,105750.0,105740.0,0.00612071]
[1762185644256,0.83712621,105750.0,105740.0,0.00500001]
[1762185644461,0.83712621,105750.0,105710.0,0.40548169]
[1762185644462,0.05633,105720.0,105710.0,0.49360039]
[1762185644670,0.04283,105710.0,105700.0,0.18174751]
[1762185644869,0.04293843,105710.0,105700.0,0.18174751]
[1762185645070,0.40373843,105710.0,105700.0,0.18174751]
[1762185645268,0.40373843,105710.0,105700.0,0.00320712]
[1762185645463,0.0135,105700.0,105680.0,0.14694039]
[1762185645768,0.36090843,105710.0,105700.0,0.02194]
[1762185645955,0.00010843,105710.0,105700.0,0.64516829]
[1762185646158,0.71194,105740.0,105710.0,0.0946147]
[1762185646364,0.05633,105740.0,105730.0,0.25056139]
[1762185646564,0.04283,105750.0,105740.0,0.1391079]
[1762185646766,0.04283,105750.0,105740.0,0.4999121]
[1762185646970,0.04283,105750.0,105740.0,0.53934039]
[1762185647268,0.04289657,105750.0,105740.0,0.63393249]
[1762185647467,6.657e-05,105750.0,105740.0,0.64782249]
[1762185647666,6.657e-05,105750.0,105740.0,0.55323039]
[1762185647975,6.657e-05,105750.0,105740.0,0.64782249]
[1762185648162,6.657e-05,105750.0,105740.0,0.19243039]
[1762185648473,6.657e-05,105750.0,105740.0,0.55723039]
[1762185648662,0.36586657,105750.0,105740.0,0.19643039]
[1762185648969,0.40869657,105750.0,105740.0,0.04852]
[1762185649160,0.40869657,105750.0,105740.0,0.04452]
[1762185649357,0.40369657,105750.0,105740.0,0.004]
[1762185649565,0.40369657,105750.0,105740.0,0.005]
[1762185649961,0.77411696,105750.0,105740.0,0.005]
[1762185650165,0.04283,105720.0,105710.0,0.17854039]
[1762185650563,0.74127,105730.0,105720.0,0.02194]
[1762185651168,0.74127,105730.0,105720.0,0.17854039]
[1762185651366,0.40363,105730.0,105720.0,0.17854039]
[1762185651571,0.40363,105730.0,105720.0,0.04452]
[1762185651773,0.4982311,105730.0,105720.0,0.02194]
[1762185652063,0.1509401,105720.0,105710.0,0.02194]
[1762185652265,0.15102532,105720.0,105710.0,0.02194]
[1762185652569,0.137449,105710.0,105700.0,0.15605823]
[1762185652767,0.04283,105710.0,105700.0,0.27326623]
[1762185652963,0.04291522,105720.0,105710.0,0.04452]
[1762185653160,0.13752532,105720.0,105710.0,0.02194]
[1762185653373,0.15102532,105720.0,105710.0,0.49356039]
[1762185653572,8.522e-05,105720.0,105710.0,0.97155939]
[1762185653764,8.522e-05,105720.0,105710.0,1.34205978]
[1762185654072,8.522e-05,105720.0,105710.0,1.20803939]
[1762185654371,0.13752532,105720.0,105710.0,0.17854039]
[1762185654765,0.13752532,105720.0,105710.0,0.18254039]
[1762185654965,0.09469532,105720.0,105710.0,0.52014039]
[1762185655165,8.522e-05,105720.0,105710.0,0.97555939]
[1762185655361,0.00208522,105720.0,105710.0,0.97555939]
[1762185655565,0.00708522,105720.0,105710.0,1.20803939]
[1762185656074,0.00708522,105720.0,105710.0,1.34205978]
[1762185656272,0.1374221,105740.0,105730.0,0.04452]
[1762185656471,0.1374221,105740.0,105730.0,0.51614039]
[1762185656768,0.1374221,105740.0,105730.0,0.61074149]
[1762185656975,0.4688754,105760.0,105730.0,0.97154149]
[1762185657274,0.4982132,105750.0,105740.0,0.17854039]
[1762185657661,0.04283,105750.0,105740.0,0.17854039]
[1762185657866,0.1374132,105750.0,105740.0,0.17854039]
[1762185658071,0.4982132,105750.0,105740.0,0.17854039]
[1762185658269,0.1374132,105750.0,105740.0,0.17854039]
[1762185658473,0.1494132,105750.0,105740.0,0.17854039]
[1762185658769,0.1494132,105750.0,105740.0,0.27313259]
[1762185658974,0.1494132,105750.0,105740.0,0.17854039]
[1762185659372,0.05483,105750.0,105740.0,0.64782259]
[1762185659871,0.012,105750.0,105740.0,0.28702259]
[1762185660078,0.1065832,105750.0,105740.0,0.28702259]
[1762185660265,0.012,105750.0,105740.0,0.64782259]
[1762185660470,0.012,105750.0,105740.0,1.04155343]
[1762185660865,0.0975711,105770.0,105740.0,1.04155343]
[1762185660866,0.003,105770.0,105740.0,1.01961343]
[1762185661175,0.50752325,105790.0,105780.0,0.04452]
[1762185661362,0.86832325,105790.0,105780.0,0.35946]
[1762185661567,0.0945653,105770.0,105760.0,0.152984]
[1762185661770,0.04283,105780.0,105770.0,0.04452]
[1762185661972,0.1373864,105780.0,105770.0,0.1390853]
[1762185662168,0.1373864,105780.0,105770.0,0.38204]
[1762185662366,0.4981864,105780.0,105770.0,0.38204]
[1762185662666,0.5116864,105780.0,105740.0,0.37469]
[1762185662866,0.5116864,105780.0,105750.0,0.04452]
[1762185662867,0.40363,105760.0,105750.0,0.04452]
[1762185663077,0.85419323,105760.0,105750.0,0.35942]
[1762185663271,0.02126,105740.0,105730.0,0.04452]
[1762185663575,0.02126,105740.0,105730.0,0.382]
[1762185663576,0.40363,105740.0,105730.0,0.382]
[1762185663874,0.49339323,105760.0,105750.0,0.02194]
[1762185664079,0.41713,105760.0,105750.0,0.04452]
[1762185664270,0.3608,105770.0,105760.0,0.1390943]
[1762185664471,0.3743,105780.0,105760.0,0.34976842]
[1762185664670,0.41713,105780.0,105770.0,0.4539453]
[1762185664873,0.41713,105780.0,105770.0,0.57874412]
[1762185665073,0.41713,105780.0,105760.0,0.01389]
[1762185665074,0.04283,105770.0,105760.0,0.04452]
[1762185665378,0.42670442,105770.0,105760.0,0.04452]
[1762185665566,0.04283,105770.0,105760.0,0.38196]
[1762185665875,0.04283,105780.0,105770.0,0.04452]
[1762185666075,0.04283,105780.0,105770.0,0.02194]
[1762185666076,0.41713,105780.0,105770.0,0.02194]
[1762185666273,0.04283,105770.0,105760.0,0.04452]
[1762185666577,0.40363,105770.0,105760.0,0.25519412]
[1762185666780,0.02126,105750.0,105740.0,0.03486]
[1762185667073,0.04283,105740.0,105730.0,0.69870522]
[1762185667272,0.3608,105750.0,105730.0,0.58216412]
[1762185667470,0.40363,105750.0,105740.0,0.21872412]
[1762185667669,0.40363,105750.0,105730.0,0.4574]
[1762185667670,0.04283,105740.0,105730.0,0.60410412]
[1762185667881,0.04283,105740.0,105730.0,0.60210412]
[1762185668065,0.3743,105760.0,105730.0,0.69670522]
[1762185668269,0.40363,105750.0,105740.0,0.02194]
[1762185668472,0.09440356,105730.0,105720.0,0.61599412]
[1762185668772,0.09440356,105730.0,105720.0,0.59259412]
[1762185668975,0.45520356,105730.0,105720.0,0.59259412]
[1762185669180,0.49803356,105730.0,105720.0,0.38192]
[1762185669476,0.49803356,105730.0,105720.0,0.04452]
[1762185669673,0.3608,105730.0,105720.0,0.25422412]
[1762185669870,0.41713,105740.0,105730.0,0.02194]
[1762185670169,0.3608,105740.0,105730.0,0.67326592]
[1762185670565,0.3608,105740.0,105730.0,0.57866412]
[1762185670765,0.3608,105740.0,105730.0,0.67326582]
[1762185670969,0.40663,105750.0,105740.0,0.04452]
[1762185671165,0.40663,105750.0,105740.0,0.02194]
[1762185671368,0.02126,105730.0,105720.0,0.05744]
[1762185671967,0.41713,105740.0,105730.0,0.04452]
[1762185672169,0.04283,105720.0,105710.0,0.04452]
[1762185672379,0.40363,105720.0,105710.0,0.04452]
[1762185673082,0.41304048,105720.0,105710.0,0.04452]
[1762185673277,0.04283,105710.0,105700.0,0.04773974]
[1762185673474,0.40363,105710.0,105700.0,0.58188386]
[1762185673672,0.40363,105710.0,105700.0,0.24452386]
[1762185673970,0.38371048,105720.0,105710.0,0.04452]
[1762185673971,0.42654048,105720.0,105710.0,0.04452]
[1762185674375,0.04442,105710.0,105700.0,0.39539974]
[1762185674569,0.40522,105710.0,105700.0,0.39539974]
[1762185674772,0.03091048,105720.0,105710.0,0.04459]
[1762185674973,0.3743,105740.0,105720.0,0.05723]
[1762185675178,0.40522,105730.0,105720.0,0.04459]
[1762185675386,0.04442,105720.0,105710.0,0.02621]
[1762185675578,0.41879,105720.0,105710.0,0.02621]
[1762185675786,0.41477528,105720.0,105710.0,0.04759]
[1762185676081,0.14858608,105720.0,105710.0,0.24437412]
[1762185676283,0.52295608,105720.0,105710.0,0.24437412]
[1762185676675,0.52295608,105720.0,105710.0,0.04459]
[1762185677585,0.41477528,105720.0,105710.0,0.04459]
[1762185677780,0.41477528,105720.0,105710.0,0.24137412]
[1762185677980,0.05397528,105720.0,105710.0,0.33599392]
[1762185678179,0.00955528,105720.0,105710.0,0.69679392]
[1762185678378,0.4998269,105730.0,105720.0,0.04459]
[1762185678574,0.40522,105730.0,105720.0,0.57869412]
[1762185678779,0.5133161,105740.0,105730.0,0.04459]
[1762185678985,0.3608,105740.0,105730.0,0.33597602]
[1762185679185,0.3608,105750.0,105740.0,0.1518229]
[1762185679380,0.3743,105760.0,105750.0,0.02321]
[1762185679381,0.4997958,105760.0,105750.0,0.02321]
[1762185679583,0.4997958,105760.0,105750.0,0.24137412]
[1762185679584,0.50933516,105760.0,105750.0,0.24137412]
[1762185680082,0.41476006,105760.0,105750.0,0.24137412]
[1762185680391,0.50933516,105760.0,105750.0,0.04459]
[1762185680583,0.54425346,105760.0,105750.0,0.33728]
[1762185681186,0.094584,105750.0,105740.0,0.04459]
[1762185681488,0.094584,105750.0,105740.0,0.57865412]
[1762185681890,0.094584,105750.0,105740.0,0.59129412]
[1762185682481,0.50933486,105760.0,105750.0,0.04459]
[1762185682686,0.50933486,105760.0,105750.0,0.24137412]
[1762185682898,0.52290486,105760.0,105750.0,0.04459]
[1762185683190,0.52290486,105760.0,105720.0,0.66576658]
[1762185683191,0.1390217,105730.0,105720.0,0.66576658]
[1762185683484,0.3608,105740.0,105730.0,0.1391919]
[1762185683683,0.3608,105750.0,105740.0,0.02321]
[1762185683889,0.52290886,105760.0,105750.0,0.04459]
[1762185684090,0.42833006,105760.0,105750.0,0.24137412]
[1762185684288,0.42833006,105760.0,105750.0,0.33595812]
[1762185684492,0.53190516,105760.0,105750.0,0.24137412]
[1762185684691,0.3698,105760.0,105750.0,0.33595812]
[1762185684992,0.3698,105760.0,105750.0,0.24137412]
[1762185685391,0.464375,105760.0,105750.0,0.24137412]
[1762185685577,0.464375,105760.0,105750.0,0.33595812]
[1762185685785,0.464375,105760.0,105750.0,0.57235812]
[1762185685986,0.3698,105760.0,105750.0,0.57235812]
[1762185686488,0.464375,105760.0,105750.0,0.57235812]
[1762185686886,0.3698,105760.0,105750.0,0.57235812]
[1762185687091,0.0068781,105760.0,105750.0,0.66691629]
[1762185687394,0.0068781,105760.0,105750.0,0.83093217]
[1762185687586,0.0068781,105760.0,105750.0,1.02771629]
[1762185687982,0.0068781,105760.0,105750.0,1.36487629]
[1762185688384,0.0068781,105760.0,105750.0,1.02771539]
[1762185688590,0.0068781,105760.0,105750.0,1.36487539]
[1762185688988,0.0068781,105760.0,105750.0,1.41582785]
[1762185689184,0.0068781,105760.0,105750.0,1.36487539]
[1762185689488,0.0068781,105760.0,105750.0,1.44976739]
[1762185689988,0.0068781,105760.0,105750.0,1.11260739]
[1762185690189,0.0068781,105760.0,105750.0,1.39877493]
[1762185690404,0.1014525,105760.0,105750.0,0.60627183]
[1762185690589,0.1014525,105760.0,105750.0,0.24137412]
[1762185690789,0.1014525,105760.0,105750.0,0.57849412]
[1762185691091,0.1014525,105760.0,105750.0,0.74251]
[1762185691092,0.0286181,105760.0,105750.0,0.74251]
[1762185691293,0.0068781,105760.0,105750.0,1.03387742]
[1762185691486,0.1231922,105760.0,105750.0,0.93929412]
[1762185691686,0.1231922,105760.0,105750.0,0.24137412]
[1762185691687,0.5196322,105760.0,105750.0,0.24137412]
[1762185691884,0.1393431,105750.0,105740.0,0.04506]
[1762185692084,0.5001431,105750.0,105730.0,0.23072366]
[1762185692285,0.5001519,105740.0,105730.0,0.27578366]
[1762185692493,0.5001519,105740.0,105730.0,0.61286366]
[1762185692691,0.3608,105750.0,105730.0,0.48886054]
[1762185692886,0.52965777,105750.0,105740.0,0.34916612]
[1762185693194,0.07427327,105750.0,105740.0,0.34916612]
[1762185693495,0.1163227,105750.0,105740.0,0.61537412]
[1762185693697,0.04476,105750.0,105740.0,0.74390526]
[1762185693999,0.5127607,105760.0,105750.0,0.1164027]
[1762185694291,0.5127607,105760.0,105750.0,0.55564412]
[1762185694494,0.5127607,105760.0,105750.0,0.4534427]
[1762185694694,0.1519607,105760.0,105750.0,0.4534427]
[1762185694889,0.13293218,105760.0,105750.0,0.4766827]
[1762185695084,0.07555218,105760.0,105750.0,1.03426682]
[1762185695286,0.02974,105760.0,105750.0,1.03426682]
[1762185695495,0.02974,105760.0,105750.0,0.67346682]
[1762185695690,0.008,105760.0,105750.0,1.06820636]
[1762185695892,0.008,105760.0,105750.0,1.39916453]
[1762185696094,0.008,105760.0,105750.0,1.45011699]
[1762185696392,0.71046,105800.0,105780.0,0.1523458]
[1762185696594,0.71046,105800.0,105790.0,0.57888412]
[1762185696595,0.5127179,105800.0,105790.0,0.57888412]
[1762185696795,0.5127179,105800.0,105790.0,0.67343142]
[1762185696796,0.1519179,105800.0,105790.0,0.67343142]
[1762185696991,0.05416803,105800.0,105790.0,0.67343142]
[1762185697294,0.02174,105800.0,105790.0,1.03423142]
[1762185697496,0.02174,105800.0,105790.0,0.93968412]
[1762185697693,0.03074,105800.0,105790.0,0.7429]
[1762185697998,0.05376,105800.0,105790.0,1.03423132]
[1762185698292,0.05376,105800.0,105790.0,0.93968412]
[1762185698495,0.05376,105800.0,105790.0,0.57888412]
[1762185698496,0.40556,105800.0,105790.0,0.57888412]
[1762185698695,0.42718,105800.0,105790.0,0.35882]
[1762185698887,0.42718,105800.0,105790.0,0.02182]
[1762185699193,0.04476,105790.0,105780.0,0.04506]
[1762185699400,0.02174,105780.0,105770.0,0.19678412]
[1762185699591,0.04476,105770.0,105760.0,0.38202]
[1762185699790,0.40556,105770.0,105760.0,0.38202]
[1762185700597,0.04476,105760.0,105750.0,0.33642742]
[1762185700798,0.02174,105750.0,105740.0,0.42869061]
[1762185700996,0.40556,105750.0,105740.0,0.07900061]
[1762185701196,0.02174,105740.0,105730.0,0.73118613]
[1762185701394,0.04476,105740.0,105730.0,0.87136201]
[1762185701603,0.40556,105750.0,105740.0,0.1164123]
[1762185701900,0.40556,105750.0,105740.0,0.27578473]
[1762185702098,0.40556,105750.0,105740.0,0.37037703]
[1762185702399,0.40556,105750.0,105740.0,0.27578473]
[1762185702598,0.64196,105750.0,105730.0,0.03394061]
[1762185702901,0.41818,105740.0,105730.0,0.37086061]
[1762185703087,0.41818,105740.0,105730.0,0.4365216]
[1762185703287,0.41818,105740.0,105730.0,0.37586061]
[1762185703894,0.52203938,105740.0,105730.0,0.37586061]
[1762185704090,0.42744638,105740.0,105730.0,0.13354171]
[1762185704299,0.50941868,105740.0,105730.0,0.37538583]
[1762185704599,0.50941868,105740.0,105730.0,0.28078473]
[1762185704898,0.50941868,105740.0,105730.0,0.27678473]
[1762185705094,0.41482638,105740.0,105730.0,0.37138603]
[1762185705297,0.00926638,105740.0,105730.0,0.37138603]
[1762185705499,0.4553923,105740.0,105730.0,0.37138603]
[1762185705704,0.4780623,105740.0,105730.0,0.27678473]
[1762185706197,0.4994423,105740.0,105730.0,0.27678473]
[1762185706393,0.5125823,105740.0,105730.0,0.27678473]